Cogmind - Beta 16 @@@ ROGUE MODE // 2026.02.08 @ 08:47:51 Player: Artackni Result: Destroyed by G-47 Trooper with Particle Gun Performance ------------- Evolutions (0) 0 Regions Visited (1) 200 Robots Destroyed (5) 25 Value Destroyed (61) 61 Prototype IDs (0) 0 Alien Tech Used (0) 0 Bonus (0) 0 TOTAL SCORE: 286 Bonus ------- None Cogmind --------- Core Integrity 0/250 Matter 239/300 Energy 100/100 System Corruption 2% Temperature Warning (325) Movement Core (50) Location -10/Materials Parts ------- > --- POWER (1) -------- (None) > --- PROPULSION (2) --- (None) > --- UTILITY (2) ------ Seismic Detector > --- WEAPON (2) ------- Small Laser Light Assault Rifle > --- INVENTORY (5) ---- Light Ion Engine Large Storage Unit EM Pulse Gun Peak State ------------ > --- POWER ------------ Light Ion Engine > --- PROPULSION ------- Wheel Wheel > --- UTILITY ---------- Improved Terrain Scanner Seismic Detector > --- WEAPON ----------- Small Laser Light Assault Rifle > --- INVENTORY -------- Light Ion Engine Small Storage Unit EM Pulse Gun [Rating: 9] Favorites ----------- Power Light Ion Engine Engine Light Ion Engine Propulsion Wheel Wheel Wheel Utility Seismic Detector Device Seismic Detector Storage Small Storage Unit Weapon Small Laser Energy Gun Small Laser Ballistic Gun Light Assault Rifle Build | -11 -10 ------- Run | Yrd Mat Slots Evolved . | . . Power . | . . Propulsion . | . . Utility . | . . Weapon . | . . Parts Attached 10 | 8 2 Power 1 | 1 . Engine 1 | 1 . Core . | . . Reactor . | . . Propulsion 2 | 2 . Treads . | . . Leg . | . . Wheel 2 | 2 . Hover . | . . Flight . | . . Utility 3 | 2 1 Device 2 | 1 1 Storage 1 | 1 . Processor . | . . Hackware . | . . Protection . | . . Artifact . | . . Weapon 4 | 3 1 Energy Gun 3 | 2 1 Energy Cannon . | . . Ballistic Gun 1 | 1 . Ballistic Cannon . | . . Launcher . | . . Special Weapon . | . . Impact Weapon . | . . Slashing Weapon . | . . Piercing Weapon . | . . Special Melee Weapon . | . . Unidentified Prototypes . | . . Parts Lost 5 | . 5 Power 1 | . 1 Propulsion 2 | . 2 Utility 1 | . 1 Weapon 1 | . 1 Highest Loss Streak 5 | . 5 To Critical Strikes . | . . Average Backups 3 | 1 3 Power . | . 1 Propulsion . | . . Utility . | . 1 Weapon 1 | . 1 Tool/Special . | . . Unused Backups 2 | . 2 Power 1 | . 1 Propulsion . | . . Utility 1 | . 1 Weapon . | . . Tool/Special . | . . Average Slot Usage (%) 98 | . 98 Engine 13 | . 13 Wheel 27 | . 27 Device 27 | . 27 Energy Gun 24 | . 24 Ballistic Gun 3 | . 3 Peak Build Rating 9 | 7 9 Average Rating 8 | 5 8 On Entrance 3 | . 7 Avg Prop Armor Cover (%) . | . . Naked Turns . | . . Heaviest Build 11 | 11 11 Greatest Support 20 | 20 20 Greatest Overweight (x) . | . . Average Overweight (x) . | . . Largest Inventory Capacity 8 | 8 8 Average Capacity 5 | 7 5 Most Carried 4 | 3 4 Average Carried 3 | 1 3 Final Capacity 8 | 8 5 Final Carried 3 | 3 3 Class Distribution -------------------- 71% | Scavenger-Mutant 28% | Mutant Dominant Class ---------------- Scavenger-Mutant | -10/Materials Resources | -11 -10 ----------- Run | Yrd Mat Matter Collected 324 | 294 30 Remotely . | . . Salvage Created 200 | 158 42 Parts 12 | 9 3 Haulers Intercepted . | . . Recyclers Shooed . | . . Parts Field Recycled . | . . Retrieved Matter . | . . Parts Self-Destructed . | . . Prevented . | . . Parts Restored . | . . Kills | -11 -10 ------- Run | Yrd Mat Combat Hostiles Destroyed 1 | . 1 Guns 1 | . 1 Classes Destroyed 3 | 2 1 Tunneler 3 | 3 . Recycler 1 | 1 . Grunt 1 | . 1 Best Kill Streak 3 | 3 1 Combat Bots Only 1 | . 1 Max Kills in Single Turn 1 | 1 1 Gunslinging . | . . Exploded . | . . Melee . | . . Uniques/NPCs Destroyed . | . . Combat | -11 -10 -------- Run | Yrd Mat Hostile Shots Fired 45 | . 45 Missed 8 | . 8 Hits 37 | . 37 Projectile 37 | . 37 Critical Strikes 3 | . 3 Damage Taken 532 | . 532 Core 252 | . 252 Absorbed by Shields . | . . Core Remaining (%) 100 | 100 . Volleys Fired 38 | 17 21 Largest 2 | 2 2 Hottest 80 | 60 80 Shots Fired 67 | 30 37 Gun 67 | 30 37 Cannon . | . . Launcher . | . . Special . | . . Kinetic 30 | 17 13 Thermal 37 | 13 24 Explosive . | . . Electromagnetic . | . . Robot Hit Streak 8 | 3 8 Robot Miss Streak 3 | 3 3 Penetration Max . | . . Secondary Targets . | . . Shots Hit Robots 38 | 13 25 Core Hits 11 | 5 6 Critical Kills . | . . Critical Parts Destroyed . | . . Critical Strikes . | . . Melee Attacks . | . . Impact . | . . Slashing . | . . Piercing . | . . Sneak Attacks . | . . Combat Hostiles . | . . Follow-up Attacks . | . . Damage Inflicted 371 | 127 244 Guns 371 | 127 244 Cannons . | . . Explosions . | . . Melee . | . . Ramming . | . . Kinetic 97 | 49 48 Thermal 274 | 78 196 Explosive . | . . Electromagnetic . | . . Impact . | . . Slashing . | . . Piercing . | . . Highest Corruption 2 | . 2 Average Corruption 2 | . 2 Corruption Purged . | . . Corruption Blocked . | . . Effects 9 | . 9 Message Errors 3 | . 3 Matter Fused 3 | . 3 Heat Flow Errors 1 | . 1 Data Loss (minor) 2 | . 2 Overload Shots . | . . Overflow Damage . | . . Projectiles . | . . Explosions . | . . Melee . | . . Knockbacks . | . . Impact . | . . Kinetic . | . . Secondary . | . . Self-Inflicted Damage . | . . Shots . | . . Rammed . | . . Targets Rammed . | . . Kicked . | . . Crushed . | . . Highest Temperature 347 | 40 347 Average Temperature 104 | 20 140 Received Heat Transfer 351 | . 351 Effects 2 | . 2 Energy Bleed 1 | . 1 Matter Decay 1 | . 1 Siege Activations . | . . Martial Activations . | . . Shielding Activations . | . . Robots Disrupted . | . . Combat Hostiles . | . . Robots Corrupted . | . . Combat Hostiles . | . . Parts Fried . | . . Impact Corruptions . | . . Robots Melted . | . . Combat Hostiles . | . . Parts Melted 1 | 1 . Heat Transferred 625 | 175 450 Parts Sabotaged . | . . Parts Stolen . | . . Parts Stripped . | . . Power Chain Reactions . | . . Alert | -11 -10 ------- Run | Yrd Mat Maximum Alert Level . | . . Low Security (%) 100 | 100 100 Level 1 . | . . Level 2 . | . . Level 3 . | . . Level 4 . | . . Level 5 . | . . High Security . | . . Max Security . | . . Peak Influence 30 | 10 30 Initial . | . . Average 1 | 1 1 Influence Increases 85 | 20 65 Destroy 0b10 Robot/C 20 | . 20 Destroy 0b10 Robot/NC 20 | 20 . Lose Combat Pursuer 45 | . 45 Influence Decreases 85 | 20 65 Time Decay 48 | 20 28 Lost Part 37 | . 37 Squads Dispatched . | . . Investigation . | . . Extermination . | . . Reinforcement . | . . Assault . | . . Garrison . | . . Intercept . | . . Searches Triggered . | . . Construction Impeded . | . . Haulers Reinforced . | . . Active Scanning Responses . | . . Cargo Convoy Interrupts . | . . Stealth | -11 -10 --------- Run | Yrd Mat Distress Signals 1 | . 1 Communications Jammed . | . . Distress Signals . | . . Times Spotted 7 | . 7 Peak Tracking Total 5 | . 5 Tactical Retreats 2 | . 2 Traps | -11 -10 ------- Run | Yrd Mat Traps Triggered 1 | . 1 Indirectly . | . . Trap Hack Attempts . | . . Triggered . | . . Disarmed . | . . Reprogrammed . | . . Reused . | . . Traps Extracted . | . . Installed . | . . Triggered . | . . Machines | -11 -10 ---------- Run | Yrd Mat Machines Disabled . | . . Max in Single Turn . | . . Machines Repaired . | . . Machines Dismantled . | . . Machines Sabotaged . | . . Overloaded Fab Kills . | . . Hacking | -11 -10 --------- Run | Yrd Mat Machines Accessed 1 | . 1 Terminals 1 | . 1 Fabricators . | . . Repair Stations . | . . Recycling Units . | . . Scanalyzers . | . . Garrison Access . | . . Total Hacks 2 | . 2 Successful 1 | . 1 Failed 1 | . 1 Catastrophic . | . . Database Lockouts . | . . Manual 2 | . 2 Terminals 2 | . 2 Fabricators . | . . Repair Stations . | . . Recycling Units . | . . Scanalyzers . | . . Garrison Access . | . . Terminal Hacks . | . . Fabricator Hacks . | . . Repair Station Hacks . | . . Recycling Unit Hacks . | . . Scanalyzer . | . . Garrison Access Hacks . | . . Unauthorized Hacks 1 | . 1 Terminals 1 | . 1 Skim 1 | . 1 Fabricators . | . . Repair Stations . | . . Recycling Units . | . . Scanalyzers . | . . Garrison Access . | . . Data Cores Recovered . | . . Used . | . . Hacking Detections 1 | . 1 Full Trace Events . | . . Feedback Events . | . . Feedback Blocked . | . . Robot Schematics Acquired . | . . Robots Built . | . . Authchips . | . . Time . | . . Total Robot Build Rating . | . . Part Schematics Acquired . | . . Parts Built . | . . Authchips . | . . Time . | . . Total Part Build Rating . | . . Part Studies Acquired . | . . Parts Repaired . | . . Time . | . . Parts Recycled . | . . Recycled Matter . | . . Retrieved Matter . | . . Retrieved Components . | . . Parts Scanalyzed . | . . Part Schematics Acquired . | . . Parts Damaged . | . . Bothacking | -11 -10 ------------ Run | Yrd Mat Used RIF Installer . | . . Robots Hacked . | . . Non-combat . | . . Combat . | . . Robot Hacks Applied . | . . Relay Couplers Released . | . . Fabnet Peak Effective % . | . . Robots Rewired . | . . Allies Hacked . | . . Hacks Repelled . | . . Allies | -11 -10 -------- Run | Yrd Mat Total Allies . | . . Largest Group . | . . Highest-Rated Group . | . . Highest-Rated Ally . | . . Total Orders . | . . Ally Attacks . | . . Total Damage . | . . Kills . | . . Allies Corrupted . | . . Allies Melted . | . . Intel | -11 -10 ------- Run | Yrd Mat Active Infowar (turns) 833 | 43 790 Terrain 757 | . 757 Seismic 833 | 43 790 Robot Analysis Total . | . . Derelict Logs Recovered . | . . Drone Launches . | . . Drone Recoveries . | . . Exploration | -11 -10 ------------- Run | Yrd Mat Turns Passed 900 | 110 790 Spaces Moved 326 | 66 260 Core 2 | 2 . Treads . | . . Legs . | . . Wheels 324 | 64 260 Hover . | . . Flight . | . . Fastest Speed 50 | 50 80 Average Speed 79 | 79 80 Slowest Speed 80 | 80 80 Overloaded Moves . | . . Propulsion Burnouts . | . . Robots Hopped . | . . Potential Cave-ins . | . . Cave-ins Triggered . | . . Exploration Rate (%) 18 | 4 33 Regions Visited 1 Branch Regions . Pre-discovered Areas . | . . Known Exits Taken . | . . Unknown Exits Taken 1 | 1 . Scrap Searched . | . . Spaces Dug . | . . Terrain Destroyed . | . . Melee . | . . Projectile . | . . AOE . | . . Terrain Rammed . | . . Walls Destroyed . | . . Machines Disabled . | . . Actions | -11 -10 --------- Run | Yrd Mat Total 900 | 93 807 Wait 520 | . 520 Move 325 | 65 260 Hop . | . . Pick Up 3 | 2 1 Fast Attach 9 | 8 1 Attach 1 | . 1 Detach 2 | 1 1 Swap 1 | . 1 Drop 1 | . 1 Fire 38 | 17 21 Melee . | . . Ram . | . . Kick . | . . Crush . | . . Escape Stasis . | . . Rewire . | . . Trap . | . . Miscellaneous . | . . Route ------- -11/Scrapyard -10/Materials (discovered 2 exits: [*Min x2]) History --------- Turn | Location | Event 14 | -11/Scrapyard | Discovered new exit (range 16) 111 | -11/Scrapyard | Entered Materials 111 | -10/Materials | Discovered new exit (range 7) 267 | -10/Materials | Discovered new exit (range 15) 550 | -10/Materials | Build established: Scavenger-Mutant 887 | -10/Materials | Core integrity fell below 50% 894 | -10/Materials | Core integrity fell below 20% 901 | -10/Materials | Destroyed by G-47 Trooper with Particle Gun Last Messages --------------- 00818_ System corrupted: Component data lost. 00833_ NKM0>HU9TUHUYGQW7 NKKK=JUG< 4SE8RGGZS 00873_ Wheel destroyed. 00882_ Sml. Laser destroyed. 00886_ G-47 Trooper heat damages Lgt. Nuclear Core, Imp. Heat Sink, Particle Gun. 00887_ Critical hit (Burn: +37). 00889_ G-47 Trooper overheating. 00893_ Critical hit (Burn: +37). 00894_ G-47 Trooper heat spikes uncontrollably. 00894_ Imp. Terrain Scanner destroyed. 00895_ Overheating: Energy bleed (-16). 00895_ G-47 Trooper heat damages Imp. Heat Sink. 00895_ Lgt. Ion Engine destroyed. 00895_ G-47 Trooper overheating. 00898_ G-47 Trooper heat short circuits Aluminum Leg. 00898_ Wheel destroyed. 00898_ Critical hit (Burn: +37). 00900_ Overheating: Matter decay (-48). 00900_ G-47 Trooper overheating. Map ----- +----------------------------------------------------+ | ?????#?#?????# # #?# | | ???????###?#?# + #?# | | ???????#??#??# """ """ # #?# | | ????????#####??""" """ # ### | | ??????????##????"" """ ## ##?# | | ???????#???##?? ## #??# | | ???????????????? ## #??## | | ????????????????######### #???? | | ?????????#????########### #???? | | ??????????????# ## #???? | | ????????#?????# " """ ## ###?? | | ??????????????# T """ # #??? | | ????????#?#???# " """ # #??? | | ???????????? ?# + #??? | | ??????????????# """ # #??? | | ???????#??????# """ # #??? | | ???????#??????# """ ## ##??? | | ???#?? ???????# ! ## #???? | | ???# ??? ?????########### #??#? | | ???# ????? ????#?????# #???? | | ???# ?????????????#????# #???? | | ???# ?###############??# #???? | | ???# # ! #### ###?? | | ???# # ## #?? | | ???# g ## #?? | | ???# #@ g ## #?? | | ???# # g + " #?? | | ???# ?# [ ## #?? | | ???# ?################ #?? | | ???# ?????????????????# #?? | | ???# ??? ?????????????## ##?? | | ???#????? ?????????????# #??? | | ???????????????????????# #??? | | ????????????????#??????# #??? | | ?#?????????????????#???# #??? | | ????????? ?????????????# #?#? | | ??#????????????????????# #??? | | ????????????????? ?????# #??? | | ???????????????????????? #??? | | ???????????????????????? #??? | | ???????????????????????? ????? | | ????????#???????????????? ??????? | | ????????????????????????????????? | | ????????????????????????????????? | | ????????????????????????????????? | | ????????????????????????????????? | | ????????????????????????????????? | | ????????????????????????????????? | | ????????????????????????????????? | | ????????????????????????????????? | +----------------------------------------------------+ Best States ------------- Heat Dissipation 25 Energy Generation 10 Energy Capacity 125 Matter Stores 300 Matter Capacity 300 Sight Range 16 Terrain Scan Range 16 Terrain Scan Density 10 Evasion (%) 44 Item Schematics ----------------- None Robot Schematics ------------------ None Fabricated ------------ Nothing Repaired ---------- Nothing Studied --------- None Alien Tech Used ----------------- None Achievements -------------- None Challenges ------------ None Game ------ Seed RingLauncherMultitool Manual? 0 Play Time 00:06:45 Cumulative 147.1 hours Start 2026.02.08 @ 08:43:55 End 2026.02.08 @ 08:47:51 Sessions 1 Manual Loads 0 Difficulty Rogue Special Mode None Game No. 77 Rogue 77 Adventurer 0 Explorer 0 Win Type - Total 7 Types 6/0/1/0/0/0/0/0/0/0 Lore% 65 Gallery% 66 Achievement% 59 Wizard Run 0 Options --------- Layout 0 ASCII 0 Keyboard 1 Movement Arrows Keybinds 0 Fullscreen 1 Font 18/SmallcapsGlow Map View 76x50 Zoom Use 0% Tactical HUD 1 Map Filters NONE Filters NONE Steam 1 RUN: ad2362b0-9519-4bc5-9500-3ba17ffa169f